[Event "GrandPrix_29.05"]
[Site "Chess.com"]
[Date "2020.05.29"]
[Round "3"]
[White "Kobalia"]
[Black "MilosJi"]
[Result "1-0"]
[WhiteElo "2232"]
[BlackElo "2200"]
[TimeControl "600+2"]
[EndTime "10:27:14 PDT"]
[Termination "Kobalia won by resignation"]

1. e4 {[%clk 0:10:01.9]} 1... d5 {[%clk 0:09:59.9]} 2. exd5 {[%clk 0:09:59.6]}
2... Qxd5 {[%clk 0:10:00.2]} 3. Nc3 {[%clk 0:09:59]} 3... Qd6 {[%clk 0:10:00.4]}
4. d4 {[%clk 0:09:56.9]} 4... Nf6 {[%clk 0:10:01.2]} 5. Nf3 {[%clk 0:09:54]}
5... c6 {[%clk 0:10:01.8]} 6. Bc4 {[%clk 0:09:09.2]} 6... Be6 {[%clk 0:09:51.2]}
7. Qe2 {[%clk 0:08:38.1]} 7... Bxc4 {[%clk 0:09:49.4]} 8. Qxc4 {[%clk
0:08:38.5]} 8... e6 {[%clk 0:09:50.3]} 9. Bg5 {[%clk 0:07:41.8]} 9... Nbd7
{[%clk 0:09:45]} 10. O-O {[%clk 0:07:32.6]} 10... Qb4 {[%clk 0:09:33.6]} 11. Qd3
{[%clk 0:07:20]} 11... Be7 {[%clk 0:09:32.5]} 12. Ne5 {[%clk 0:06:31]} 12... Rd8
{[%clk 0:09:22.5]} 13. a3 {[%clk 0:05:21.5]} 13... Qa5 {[%clk 0:08:57.4]} 14. f4
{[%clk 0:03:54.1]} 14... O-O {[%clk 0:08:51.4]} 15. b4 {[%clk 0:03:51.6]} 15...
Qc7 {[%clk 0:08:48.6]} 16. Ne4 {[%clk 0:03:35.1]} 16... Rfe8 {[%clk 0:08:34.7]}
17. Nxf6+ {[%clk 0:03:24.9]} 17... Nxf6 {[%clk 0:07:49]} 18. Kh1 {[%clk
0:03:22.6]} 18... g6 {[%clk 0:07:33.7]} 19. Rae1 {[%clk 0:03:15]} 19... a5
{[%clk 0:07:29.6]} 20. c3 {[%clk 0:03:14.5]} 20... Nd5 {[%clk 0:07:27.5]} 21.
Bxe7 {[%clk 0:03:10.3]} 21... Rxe7 {[%clk 0:07:24.4]} 22. Qg3 {[%clk 0:02:56.7]}
22... Ree8 {[%clk 0:07:16.8]} 23. h3 {[%clk 0:02:40]} 23... Ra8 {[%clk
0:06:48.1]} 24. f5 {[%clk 0:02:24.5]} 24... exf5 {[%clk 0:06:47.4]} 25. Rxf5
{[%clk 0:02:16.3]} 25... f6 {[%clk 0:06:44.6]} 26. c4 {[%clk 0:02:15.5]} 26...
fxe5 {[%clk 0:06:08.9]} 27. cxd5 {[%clk 0:02:14.3]} 27... cxd5 {[%clk
0:06:01.9]} 28. Rfxe5 {[%clk 0:02:11.4]} 28... Rxe5 {[%clk 0:06:02]} 29. Rxe5
{[%clk 0:02:10.8]} 29... Qf7 {[%clk 0:05:59.2]} 30. bxa5 {[%clk 0:02:02.4]}
30... Rxa5 {[%clk 0:05:54]} 31. Qe1 {[%clk 0:01:56.8]} 31... Ra8 {[%clk
0:05:45.2]} 32. Re7 {[%clk 0:01:56]} 32... Qf6 {[%clk 0:05:35]} 33. Rxb7 {[%clk
0:01:55.2]} 33... Rf8 {[%clk 0:04:56.2]} 34. Qe3 {[%clk 0:01:51.5]} 34... h5
{[%clk 0:03:59.6]} 35. a4 {[%clk 0:01:42.3]} 35... h4 {[%clk 0:03:11.1]} 36. a5
{[%clk 0:01:34.1]} 36... Ra8 {[%clk 0:02:03.2]} 37. Qh6 {[%clk 0:00:54.3]} 37...
Re8 {[%clk 0:01:52.3]} 38. Rb1 {[%clk 0:00:38.4]} 38... Qf5 {[%clk 0:01:45.3]}
39. Rc1 {[%clk 0:00:34.1]} 39... g5 {[%clk 0:01:34]} 40. Qd6 {[%clk 0:00:28.8]}
40... g4 {[%clk 0:01:09]} 41. hxg4 {[%clk 0:00:29.1]} 41... Qxg4 {[%clk
0:01:06.1]} 42. Qxd5+ {[%clk 0:00:28.3]} 42... Kh8 {[%clk 0:01:07.4]} 43. Qf3
{[%clk 0:00:24.1]} 43... Qg5 {[%clk 0:01:01.5]} 44. Rc5 {[%clk 0:00:23.6]} 44...
Qg6 {[%clk 0:00:37.3]} 45. Qh5+ {[%clk 0:00:19.4]} 45... Qxh5 {[%clk 0:00:37.6]}
46. Rxh5+ {[%clk 0:00:20.1]} 46... Kg7 {[%clk 0:00:39]} 47. Rxh4 {[%clk
0:00:19.1]} 1-0

[Event "GrandPrix_29.05"]
[Site "Chess.com"]
[Date "2020.05.29"]
[Round "3"]
[White "friesnielsen2302"]
[Black "Winawer81"]
[Result "0-1"]
[WhiteElo "1496"]
[BlackElo "2083"]
[TimeControl "600+2"]
[EndTime "10:27:16 PDT"]
[Termination "Winawer81 won by resignation"]

1. d4 {[%clk 0:09:50.7]} 1... Nf6 {[%clk 0:09:59.8]} 2. e3 {[%clk 0:09:47.7]}
2... e6 {[%clk 0:09:55.7]} 3. Ne2 {[%clk 0:09:46.2]} 3... b6 {[%clk 0:09:53.9]}
4. c4 {[%clk 0:09:40.4]} 4... Bb7 {[%clk 0:09:53.3]} 5. Nbc3 {[%clk 0:09:41.8]}
5... d5 {[%clk 0:09:50.8]} 6. cxd5 {[%clk 0:09:35.3]} 6... exd5 {[%clk
0:09:45.8]} 7. Ng3 {[%clk 0:09:34.1]} 7... h5 {[%clk 0:09:21.6]} 8. Bb5+ {[%clk
0:09:31.3]} 8... c6 {[%clk 0:09:20.6]} 9. Bd3 {[%clk 0:09:32.2]} 9... h4 {[%clk
0:09:18.6]} 10. Nge2 {[%clk 0:09:32.2]} 10... h3 {[%clk 0:09:15.6]} 11. g3
{[%clk 0:09:30.6]} 11... Bd6 {[%clk 0:09:04.6]} 12. O-O {[%clk 0:09:31]} 12...
Nbd7 {[%clk 0:09:03.4]} 13. Qc2 {[%clk 0:09:21]} 13... c5 {[%clk 0:08:21.8]} 14.
Qd1 {[%clk 0:08:22]} 14... c4 {[%clk 0:08:00.1]} 15. Bc2 {[%clk 0:08:18.5]}
15... a6 {[%clk 0:07:58.7]} 16. a4 {[%clk 0:08:18]} 16... Qe7 {[%clk 0:07:26.7]}
17. f3 {[%clk 0:08:12.5]} 17... g5 {[%clk 0:07:05.5]} 18. b3 {[%clk 0:07:49.6]}
18... g4 {[%clk 0:06:54.1]} 19. bxc4 {[%clk 0:07:38.1]} 19... gxf3 {[%clk
0:06:52.1]} 20. Rxf3 {[%clk 0:07:38.2]} 20... dxc4 {[%clk 0:06:51.7]} 21. e4
{[%clk 0:07:39.2]} 21... O-O-O {[%clk 0:06:19.7]} 22. Bg5 {[%clk 0:07:22]} 22...
Rh5 {[%clk 0:05:50.7]} 23. Qd2 {[%clk 0:07:20]} 23... Rg8 {[%clk 0:05:25.2]} 24.
Bf4 {[%clk 0:07:07.2]} 24... Bb4 {[%clk 0:05:08.4]} 25. Re3 {[%clk 0:06:17.1]}
25... Ng4 {[%clk 0:04:45.5]} 26. Rf3 {[%clk 0:06:17.7]} 26... Ndf6 {[%clk
0:04:43.7]} 27. d5 {[%clk 0:05:56.3]} 27... Ne5 {[%clk 0:04:04.6]} 28. Bxe5
{[%clk 0:05:49.1]} 28... Rxe5 {[%clk 0:03:57.6]} 29. Qf4 {[%clk 0:05:41.3]}
29... Rg6 {[%clk 0:03:21.4]} 30. Kh1 {[%clk 0:05:16.5]} 30... Bd6 {[%clk
0:03:07.4]} 31. Rd1 {[%clk 0:04:41.7]} 31... Kb8 {[%clk 0:02:40.2]} 32. Qe3
{[%clk 0:04:19.9]} 32... Bc5 {[%clk 0:02:31.4]} 33. Qd2 {[%clk 0:04:04.9]} 33...
Ng4 {[%clk 0:02:25.7]} 34. Rdf1 {[%clk 0:04:01]} 34... f6 {[%clk 0:01:32]} 35.
Nd4 {[%clk 0:03:57.4]} 35... Rg8 {[%clk 0:01:12]} 36. Nc6+ {[%clk 0:03:44.3]}
36... Bxc6 {[%clk 0:01:10.6]} 37. dxc6 {[%clk 0:03:45.9]} 37... Rd8 {[%clk
0:01:09]} 38. Nd5 {[%clk 0:03:47.3]} 38... Qd6 {[%clk 0:01:04.5]} 39. Qf4 {[%clk
0:03:33.1]} 39... Rxd5 {[%clk 0:00:34.7]} 40. exd5 {[%clk 0:03:17.9]} 40... Ne5
{[%clk 0:00:35]} 41. Be4 {[%clk 0:02:48.7]} 41... Nxf3 {[%clk 0:00:34.6]} 42.
Qxf3 {[%clk 0:02:49.7]} 42... Bd4 {[%clk 0:00:33.1]} 43. Qf5 {[%clk 0:02:43.2]}
43... Be5 {[%clk 0:00:30.8]} 44. Qxh3 {[%clk 0:02:43]} 44... c3 {[%clk
0:00:30.1]} 45. Qg2 {[%clk 0:02:43.1]} 45... Qc5 {[%clk 0:00:24.7]} 46. Qe2
{[%clk 0:02:37.8]} 46... Ka7 {[%clk 0:00:24]} 47. Kg2 {[%clk 0:02:30.2]} 47...
Rh8 {[%clk 0:00:20.1]} 48. h4 {[%clk 0:02:24.3]} 48... Rg8 {[%clk 0:00:20]} 49.
Rf4 {[%clk 0:02:24.4]} 49... Bxf4 {[%clk 0:00:20]} 50. g4 {[%clk 0:02:09.1]}
50... Qe3 {[%clk 0:00:19.5]} 51. Qxe3 {[%clk 0:02:07.4]} 51... Bxe3 {[%clk
0:00:20]} 52. d6 {[%clk 0:02:08.4]} 52... Bf4 {[%clk 0:00:18.8]} 53. d7 {[%clk
0:02:06.3]} 53... Bc7 {[%clk 0:00:19.2]} 54. Kf3 {[%clk 0:02:06.7]} 54... b5
{[%clk 0:00:20.1]} 55. axb5 {[%clk 0:02:05.3]} 55... axb5 {[%clk 0:00:21]} 56.
h5 {[%clk 0:02:07]} 56... b4 {[%clk 0:00:21.7]} 57. Bc2 {[%clk 0:02:05.8]} 57...
Rh8 {[%clk 0:00:21.2]} 58. Ke4 {[%clk 0:01:54.8]} 58... Kb6 {[%clk 0:00:21.7]}
59. Kd5 {[%clk 0:01:56.3]} 59... Rg8 {[%clk 0:00:15.4]} 60. h6 {[%clk
0:01:53.6]} 60... Rxg4 {[%clk 0:00:15.7]} 61. h7 {[%clk 0:01:54.4]} 61... Rh4
{[%clk 0:00:16.5]} 62. Bb3 {[%clk 0:01:55]} 62... Rxh7 {[%clk 0:00:16]} 63. Ke6
{[%clk 0:01:54.9]} 63... Rh2 {[%clk 0:00:14.9]} 0-1

[Event "GrandPrix_29.05"]
[Site "Chess.com"]
[Date "2020.05.29"]
[Round "3"]
[White "bernereremit"]
[Black "komandoras123"]
[Result "0-1"]
[WhiteElo "2074"]
[BlackElo "2395"]
[TimeControl "600+2"]
[EndTime "10:27:17 PDT"]
[Termination "komandoras123 won by checkmate"]

1. e4 {[%clk 0:09:59.4]} 1... d6 {[%clk 0:09:58]} 2. d4 {[%clk 0:09:58.8]} 2...
Nf6 {[%clk 0:09:58.7]} 3. Nc3 {[%clk 0:10:00.1]} 3... g6 {[%clk 0:09:58.6]} 4.
Bg5 {[%clk 0:10:01.3]} 4... c6 {[%clk 0:09:59.1]} 5. Qd2 {[%clk 0:09:51.4]} 5...
Nbd7 {[%clk 0:09:47.5]} 6. f4 {[%clk 0:09:49.7]} 6... d5 {[%clk 0:09:40.5]} 7.
e5 {[%clk 0:09:29.3]} 7... Ne4 {[%clk 0:09:39.7]} 8. Nxe4 {[%clk 0:09:23.4]}
8... dxe4 {[%clk 0:09:41.6]} 9. e6 {[%clk 0:09:10.4]} 9... fxe6 {[%clk 0:09:23]}
10. O-O-O {[%clk 0:09:07.3]} 10... Bg7 {[%clk 0:09:11.9]} 11. Nh3 {[%clk
0:08:46.7]} 11... b5 {[%clk 0:08:19.2]} 12. Nf2 {[%clk 0:08:40.6]} 12... Nf6
{[%clk 0:08:19.7]} 13. Kb1 {[%clk 0:07:56.2]} 13... Qd5 {[%clk 0:07:47]} 14. g4
{[%clk 0:07:02.8]} 14... e3 {[%clk 0:06:56.2]} 15. Qxe3 {[%clk 0:07:00.1]} 15...
Nxg4 {[%clk 0:06:57]} 16. Nxg4 {[%clk 0:06:40.6]} 16... Qxh1 {[%clk 0:06:57.8]}
17. Be2 {[%clk 0:06:30.5]} 17... Qd5 {[%clk 0:06:55.2]} 18. Bf3 {[%clk
0:06:27.5]} 18... Qd7 {[%clk 0:06:55.9]} 19. Ne5 {[%clk 0:06:14.5]} 19... Bxe5
{[%clk 0:06:54.6]} 20. dxe5 {[%clk 0:06:12.4]} 20... Qc7 {[%clk 0:06:25.3]} 21.
Qc5 {[%clk 0:04:06.5]} 21... Bb7 {[%clk 0:06:21.4]} 22. Bg4 {[%clk 0:03:50.4]}
22... h6 {[%clk 0:05:03.6]} 23. Bxe6 {[%clk 0:03:22.7]} 23... Rd8 {[%clk
0:04:58.4]} 24. Rf1 {[%clk 0:02:35.4]} 24... hxg5 {[%clk 0:03:28.7]} 25. fxg5
{[%clk 0:02:36.1]} 25... Qb6 {[%clk 0:03:02.8]} 26. Bf7+ {[%clk 0:01:52]} 26...
Kd7 {[%clk 0:02:58.9]} 27. e6+ {[%clk 0:01:47.4]} 27... Kc8 {[%clk 0:02:57.7]}
28. Qxe7 {[%clk 0:01:49.1]} 28... Rxh2 {[%clk 0:02:31.6]} 29. a3 {[%clk
0:01:44.8]} 29... Rf2 {[%clk 0:01:51.7]} 30. Re1 {[%clk 0:01:35.7]} 30... Rxc2
{[%clk 0:00:08.5]} 31. Bxg6 {[%clk 0:01:24.4]} 31... Rxb2+ {[%clk 0:00:06.9]}
32. Kxb2 {[%clk 0:01:24.9]} 32... Qf2+ {[%clk 0:00:07.7]} 33. Kb3 {[%clk
0:01:23.5]} 33... Qxe1 {[%clk 0:00:07.7]} 34. Qf6 {[%clk 0:01:21.6]} 34... Qe3+
{[%clk 0:00:06.9]} 35. Kb2 {[%clk 0:01:14.6]} 35... Rd2+ {[%clk 0:00:07.3]} 36.
Bc2 {[%clk 0:01:15.3]} 36... Qd4+ {[%clk 0:00:05.8]} 37. Kc1 {[%clk 0:01:14.8]}
37... Rxc2+ {[%clk 0:00:03.2]} 38. Kxc2 {[%clk 0:01:15.5]} 38... Qe4+ {[%clk
0:00:04.7]} 39. Kd2 {[%clk 0:01:15.9]} 39... c5 {[%clk 0:00:05.2]} 40. e7 {[%clk
0:01:14.6]} 40... Bc6 {[%clk 0:00:05]} 41. Qf8+ {[%clk 0:01:08.3]} 41... Kb7
{[%clk 0:00:04.4]} 42. Qd8 {[%clk 0:01:03.1]} 42... Qg2+ {[%clk 0:00:04.7]} 43.
Kc3 {[%clk 0:00:59.4]} 43... Qg3+ {[%clk 0:00:05.4]} 44. Kb2 {[%clk 0:00:59.3]}
44... Qe5+ {[%clk 0:00:05]} 45. Kc1 {[%clk 0:00:57.1]} 45... Qe1+ {[%clk
0:00:05.3]} 46. Kb2 {[%clk 0:00:56.9]} 46... Qe5+ {[%clk 0:00:06.9]} 47. Kc1
{[%clk 0:00:57.4]} 47... Qxg5+ {[%clk 0:00:08.2]} 48. Kb2 {[%clk 0:00:58.4]}
48... Qe5+ {[%clk 0:00:09.2]} 49. Kc1 {[%clk 0:00:59.3]} 49... Qe3+ {[%clk
0:00:09.4]} 50. Kb2 {[%clk 0:01:00.2]} 50... Qd4+ {[%clk 0:00:10.3]} 51. Kc1
{[%clk 0:00:58.5]} 51... Qc3+ {[%clk 0:00:09.7]} 52. Kd1 {[%clk 0:00:57.8]}
52... Bf3# {[%clk 0:00:10.5]} 0-1

[Event "GrandPrix_29.05"]
[Site "Chess.com"]
[Date "2020.05.29"]
[Round "3"]
[White "TheJoker64"]
[Black "kirillshevchenko"]
[Result "1/2-1/2"]
[WhiteElo "2495"]
[BlackElo "2742"]
[TimeControl "600+2"]
[EndTime "10:27:26 PDT"]
[Termination "Game drawn by repetition"]

1. e4 {[%clk 0:10:01.9]} 1... c5 {[%clk 0:09:59.6]} 2. Nf3 {[%clk 0:10:02.3]}
2... d6 {[%clk 0:10:01]} 3. Nc3 {[%clk 0:10:02.6]} 3... Nf6 {[%clk 0:10:01.5]}
4. e5 {[%clk 0:10:03.7]} 4... dxe5 {[%clk 0:10:02.5]} 5. Nxe5 {[%clk 0:10:05.6]}
5... a6 {[%clk 0:10:01.4]} 6. a4 {[%clk 0:10:06]} 6... Nbd7 {[%clk 0:09:34.5]}
7. Nc4 {[%clk 0:10:01.6]} 7... b6 {[%clk 0:08:24.5]} 8. Be2 {[%clk 0:09:03.1]}
8... Bb7 {[%clk 0:08:15.6]} 9. Bf3 {[%clk 0:09:03.9]} 9... Bxf3 {[%clk
0:05:50.7]} 10. Qxf3 {[%clk 0:09:03.3]} 10... e6 {[%clk 0:05:46.6]} 11. g4
{[%clk 0:08:33.3]} 11... h6 {[%clk 0:04:58]} 12. d3 {[%clk 0:08:24.3]} 12... Ra7
{[%clk 0:04:42]} 13. Bf4 {[%clk 0:07:28.3]} 13... Qa8 {[%clk 0:04:18.8]} 14.
Qxa8+ {[%clk 0:07:26.4]} 14... Rxa8 {[%clk 0:04:19.5]} 15. f3 {[%clk 0:07:21.3]}
15... Rc8 {[%clk 0:02:48.5]} 16. Ne4 {[%clk 0:06:02.7]} 16... Rc6 {[%clk
0:02:40.2]} 17. Nxf6+ {[%clk 0:05:14.1]} 17... Nxf6 {[%clk 0:02:38]} 18. Ne5
{[%clk 0:03:40.6]} 18... Rc8 {[%clk 0:02:35.5]} 19. c4 {[%clk 0:03:31.1]} 19...
a5 {[%clk 0:01:35.2]} 20. Ra3 {[%clk 0:03:12.5]} 20... Nd7 {[%clk 0:01:31]} 21.
Rb3 {[%clk 0:03:03.3]} 21... Nxe5 {[%clk 0:01:28.4]} 22. Bxe5 {[%clk 0:03:04.1]}
22... Rc6 {[%clk 0:01:29.8]} 23. Ke2 {[%clk 0:03:02.2]} 23... f6 {[%clk
0:01:23.3]} 24. Bg3 {[%clk 0:02:59.7]} 24... Bd6 {[%clk 0:01:21.5]} 25. Rd1
{[%clk 0:02:17]} 25... h5 {[%clk 0:01:11.7]} 26. Bxd6 {[%clk 0:01:24.7]} 26...
Rxd6 {[%clk 0:01:13.6]} 27. h3 {[%clk 0:01:26.2]} 27... hxg4 {[%clk 0:01:04.6]}
28. hxg4 {[%clk 0:01:27.4]} 28... Rh2+ {[%clk 0:01:05.7]} 29. Ke3 {[%clk
0:01:28.7]} 29... e5 {[%clk 0:01:07.1]} 30. Rd2 {[%clk 0:01:23.7]} 30... Rh3
{[%clk 0:01:03.2]} 31. Rc3 {[%clk 0:01:10.3]} 31... Rd4 {[%clk 0:01:01.3]} 32.
Rb3 {[%clk 0:01:11]} 32... Rd6 {[%clk 0:00:56.7]} 33. Rc3 {[%clk 0:01:11.6]}
33... Kd7 {[%clk 0:00:57.5]} 34. Rcc2 {[%clk 0:01:09.9]} 34... Ke6 {[%clk
0:00:35.9]} 35. Rh2 {[%clk 0:01:05.4]} 35... Rxh2 {[%clk 0:00:35.9]} 36. Rxh2
{[%clk 0:01:05.8]} 36... Rd8 {[%clk 0:00:37.5]} 37. b3 {[%clk 0:01:03.6]} 37...
Kf7 {[%clk 0:00:35.2]} 38. Ke4 {[%clk 0:00:57.8]} 38... Kg6 {[%clk 0:00:31.1]}
39. Rh5 {[%clk 0:00:54.7]} 39... Kf7 {[%clk 0:00:28.2]} 40. Rh2 {[%clk 0:00:53]}
40... Kg8 {[%clk 0:00:25.9]} 41. Rh3 {[%clk 0:00:51.6]} 41... g6 {[%clk
0:00:25.2]} 42. Rh2 {[%clk 0:00:48.9]} 42... Kg7 {[%clk 0:00:25.9]} 43. Rh3
{[%clk 0:00:48.9]} 43... Rd7 {[%clk 0:00:19.2]} 44. Rh2 {[%clk 0:00:48.9]} 44...
Rd4+ {[%clk 0:00:12.6]} 45. Ke3 {[%clk 0:00:49.8]} 45... Rf4 {[%clk 0:00:12.3]}
46. Rh3 {[%clk 0:00:40.8]} 46... Rd4 {[%clk 0:00:10.9]} 47. Rh2 {[%clk 0:00:42]}
47... Rf4 {[%clk 0:00:09.9]} 48. Rh3 {[%clk 0:00:43.3]} 48... Rd4 {[%clk
0:00:11.1]} 49. Rh2 {[%clk 0:00:44.6]} 1/2-1/2

[Event "GrandPrix_29.05"]
[Site "Chess.com"]
[Date "2020.05.29"]
[Round "3"]
[White "Gareth-Bale11"]
[Black "Funo09"]
[Result "0-1"]
[WhiteElo "2279"]
[BlackElo "2593"]
[TimeControl "600+2"]
[EndTime "10:27:27 PDT"]
[Termination "Funo09 won by resignation"]

1. d4 {[%clk 0:10:00.4]} 1... Nf6 {[%clk 0:09:51.9]} 2. c4 {[%clk 0:09:58.4]}
2... Nc6 {[%clk 0:09:51.4]} 3. e3 {[%clk 0:09:38.2]} 3... e5 {[%clk 0:09:52]} 4.
d5 {[%clk 0:09:36.2]} 4... Ne7 {[%clk 0:09:52.3]} 5. Nc3 {[%clk 0:09:37.2]} 5...
Ng6 {[%clk 0:09:53]} 6. Nf3 {[%clk 0:09:32.1]} 6... Bc5 {[%clk 0:09:50.9]} 7.
Bd3 {[%clk 0:09:13.1]} 7... O-O {[%clk 0:09:50.6]} 8. h4 {[%clk 0:09:09.5]} 8...
d6 {[%clk 0:08:44.4]} 9. h5 {[%clk 0:09:01.1]} 9... Ne7 {[%clk 0:08:45.7]} 10.
h6 {[%clk 0:08:21.4]} 10... g6 {[%clk 0:08:46.4]} 11. Ng5 {[%clk 0:08:21.3]}
11... c6 {[%clk 0:08:25.7]} 12. dxc6 {[%clk 0:07:56.6]} 12... bxc6 {[%clk
0:08:07.3]} 13. Bd2 {[%clk 0:07:54.4]} 13... d5 {[%clk 0:07:35.1]} 14. cxd5
{[%clk 0:07:53.9]} 14... cxd5 {[%clk 0:07:35.8]} 15. Rc1 {[%clk 0:07:50.9]}
15... Bd6 {[%clk 0:06:41.3]} 16. Qf3 {[%clk 0:07:27.9]} 16... Nd7 {[%clk
0:05:09.8]} 17. Nxd5 {[%clk 0:07:12.1]} 17... Nxd5 {[%clk 0:05:11.7]} 18. Qxd5
{[%clk 0:07:10.8]} 18... Nb6 {[%clk 0:05:12.4]} 19. Qc6 {[%clk 0:06:47.8]} 19...
Be7 {[%clk 0:04:37.2]} 20. Nxf7 {[%clk 0:05:39.1]} 20... Qxd3 {[%clk 0:03:52.1]}
21. Nxe5 {[%clk 0:05:38.9]} 21... Qf5 {[%clk 0:03:48.6]} 22. f4 {[%clk
0:05:19.4]} 22... Ba6 {[%clk 0:02:26.8]} 23. g4 {[%clk 0:04:44.6]} 23... Qf6
{[%clk 0:02:03.2]} 24. Qe4 {[%clk 0:04:34.9]} 24... Bd6 {[%clk 0:02:01.7]} 25.
Bc3 {[%clk 0:04:25.9]} 25... Rae8 {[%clk 0:01:52]} 26. Bd4 {[%clk 0:04:11.1]}
26... Qe7 {[%clk 0:01:27.5]} 27. Qc2 {[%clk 0:03:28.5]} 27... Bb7 {[%clk
0:01:28.7]} 28. Rh2 {[%clk 0:02:52.1]} 28... Qe6 {[%clk 0:01:18.8]} 29. Qe2
{[%clk 0:01:54.6]} 29... Be4 {[%clk 0:00:45.9]} 30. Rf2 {[%clk 0:00:46.8]} 30...
Qd5 {[%clk 0:00:30.1]} 31. Kf1 {[%clk 0:00:37.4]} 31... Bxe5 {[%clk 0:00:27.2]}
32. fxe5 {[%clk 0:00:22.4]} 32... Bd3 {[%clk 0:00:18.8]} 33. Qxd3 {[%clk
0:00:19]} 33... Qh1+ {[%clk 0:00:20.3]} 34. Ke2 {[%clk 0:00:19]} 34... Rxf2+
{[%clk 0:00:21.9]} 35. Kxf2 {[%clk 0:00:18.7]} 35... Rf8+ {[%clk 0:00:23.8]} 36.
Ke2 {[%clk 0:00:20.2]} 36... Qxc1 {[%clk 0:00:19.4]} 37. Qb3+ {[%clk 0:00:16.1]}
37... Nc4 {[%clk 0:00:19.8]} 38. Kd3 {[%clk 0:00:16]} 38... Rc8 {[%clk
0:00:17.9]} 39. Bc3 {[%clk 0:00:07.4]} 39... Qb1+ {[%clk 0:00:17.5]} 40. Kd4
{[%clk 0:00:08]} 40... Qg1 {[%clk 0:00:17]} 41. Qb7 {[%clk 0:00:06.7]} 41...
Qxe3+ {[%clk 0:00:17.9]} 42. Kd5 {[%clk 0:00:07.7]} 42... Qf3+ {[%clk
0:00:19.3]} 0-1

[Event "GrandPrix_29.05"]
[Site "Chess.com"]
[Date "2020.05.29"]
[Round "3"]
[White "hypert"]
[Black "elohunter1999"]
[Result "0-1"]
[WhiteElo "1915"]
[BlackElo "2158"]
[TimeControl "600+2"]
[EndTime "10:27:27 PDT"]
[Termination "elohunter1999 won by checkmate"]

1. e4 {[%clk 0:10:01.9]} 1... c5 {[%clk 0:09:59]} 2. Nf3 {[%clk 0:10:02.4]} 2...
Nc6 {[%clk 0:09:59.6]} 3. Bb5 {[%clk 0:10:02.6]} 3... g6 {[%clk 0:09:59.7]} 4.
Bxc6 {[%clk 0:10:02.4]} 4... bxc6 {[%clk 0:10:01.6]} 5. O-O {[%clk 0:10:02.6]}
5... Bg7 {[%clk 0:10:00.4]} 6. Re1 {[%clk 0:10:03.3]} 6... Qc7 {[%clk
0:10:00.9]} 7. c3 {[%clk 0:09:37.8]} 7... d6 {[%clk 0:09:57.4]} 8. h3 {[%clk
0:09:34.8]} 8... Nf6 {[%clk 0:09:57.5]} 9. d4 {[%clk 0:09:34.4]} 9... cxd4
{[%clk 0:09:57.9]} 10. cxd4 {[%clk 0:09:36.3]} 10... O-O {[%clk 0:09:59.2]} 11.
Nc3 {[%clk 0:09:35.9]} 11... c5 {[%clk 0:10:00]} 12. e5 {[%clk 0:08:37.1]} 12...
dxe5 {[%clk 0:09:59.4]} 13. dxe5 {[%clk 0:08:34.7]} 13... Rd8 {[%clk 0:09:59.7]}
14. Qa4 {[%clk 0:08:14.6]} 14... Nd5 {[%clk 0:09:50.2]} 15. Nxd5 {[%clk
0:06:41.2]} 15... Rxd5 {[%clk 0:09:52.1]} 16. Qe8+ {[%clk 0:06:41.8]} 16... Bf8
{[%clk 0:09:48.1]} 17. Ng5 {[%clk 0:05:25.5]} 17... e6 {[%clk 0:09:14.8]} 18.
Nxh7 {[%clk 0:05:26]} 18... Bb7 {[%clk 0:06:12.3]} 19. Nf6+ {[%clk 0:05:24.2]}
19... Kg7 {[%clk 0:04:36.2]} 20. Qa4 {[%clk 0:03:13.8]} 20... Rxe5 {[%clk
0:04:20.8]} 21. Bh6+ {[%clk 0:02:53.4]} 21... Kxh6 {[%clk 0:02:50.8]} 22. Rxe5
{[%clk 0:02:36.1]} 22... Bd6 {[%clk 0:02:28.4]} 23. Ng4+ {[%clk 0:02:02.6]}
23... Kg7 {[%clk 0:02:26.6]} 24. Ree1 {[%clk 0:01:28.2]} 24... f5 {[%clk
0:02:23.2]} 25. Ne3 {[%clk 0:01:25.9]} 25... Rh8 {[%clk 0:02:09.1]} 26. Nc4
{[%clk 0:01:22.5]} 26... Rh4 {[%clk 0:02:07.8]} 27. Qb3 {[%clk 0:01:01.6]} 27...
Bh2+ {[%clk 0:01:54]} 28. Kf1 {[%clk 0:01:01.5]} 28... Ba6 {[%clk 0:01:50.5]}
29. Rac1 {[%clk 0:01:02]} 29... Qc6 {[%clk 0:01:44]} 30. Qc3+ {[%clk 0:01:02.1]}
30... Rd4 {[%clk 0:01:37]} 31. b3 {[%clk 0:01:02.6]} 31... Bf4 {[%clk
0:01:31.7]} 32. Rcd1 {[%clk 0:01:02.3]} 32... Qd5 {[%clk 0:01:31]} 33. Rxd4
{[%clk 0:01:01.8]} 33... cxd4 {[%clk 0:01:32.9]} 34. Qb4 {[%clk 0:00:56.5]}
34... Bd6 {[%clk 0:01:12.2]} 35. Qa4 {[%clk 0:00:53.4]} 35... Bb5 {[%clk
0:01:00.7]} 36. Qxa7+ {[%clk 0:00:52.9]} 36... Kh6 {[%clk 0:01:01]} 37. Qf7
{[%clk 0:00:38.4]} 37... Bxc4+ {[%clk 0:00:23.2]} 38. bxc4 {[%clk 0:00:40.3]}
38... Qxc4+ {[%clk 0:00:23.7]} 39. Kg1 {[%clk 0:00:41.7]} 39... d3 {[%clk
0:00:25]} 40. Qf6 {[%clk 0:00:25.4]} 40... d2 {[%clk 0:00:15.4]} 41. Qh8+ {[%clk
0:00:25.6]} 41... Kg5 {[%clk 0:00:15.9]} 42. Qd8+ {[%clk 0:00:12.7]} 42... Kh6
{[%clk 0:00:16.4]} 43. Rf1 {[%clk 0:00:10.7]} 43... Qxf1+ {[%clk 0:00:16.3]} 44.
Kxf1 {[%clk 0:00:09.1]} 44... d1=Q# {[%clk 0:00:18.2]} 0-1